[Event "*** SCC Grand Prix: Titled Tuesday Blitz"]
[Site "Chess.com"]
[Date "2020.08.25"]
[Round "6"]
[White "ChainsOfFantasia"]
[Black "icychess54"]
[Result "1-0"]
[WhiteElo "2481"]
[BlackElo "2235"]
[TimeControl "180+1"]
[EndTime "11:10:34 PDT"]
[Termination "ChainsOfFantasia won by resignation"]

1. d4 {[%clk 0:03:00.1]} 1... d5 {[%clk 0:02:59.9]} 2. Nf3 {[%clk 0:03:00.4]}
2... Nf6 {[%clk 0:02:59.3]} 3. c4 {[%clk 0:03:01.3]} 3... c6 {[%clk 0:02:59.7]}
4. Nc3 {[%clk 0:03:01.3]} 4... e6 {[%clk 0:03:00.1]} 5. e3 {[%clk 0:03:01.8]}
5... Nbd7 {[%clk 0:03:00.6]} 6. Qc2 {[%clk 0:03:02.1]} 6... Be7 {[%clk
0:02:59.6]} 7. Bd3 {[%clk 0:03:02.4]} 7... O-O {[%clk 0:02:58.6]} 8. O-O {[%clk
0:03:02.2]} 8... b6 {[%clk 0:02:59]} 9. b3 {[%clk 0:03:00]} 9... Bb7 {[%clk
0:02:59.4]} 10. Bb2 {[%clk 0:02:59.9]} 10... Re8 {[%clk 0:02:59.8]} 11. Rfe1
{[%clk 0:02:59.5]} 11... c5 {[%clk 0:02:58.6]} 12. Rad1 {[%clk 0:02:59.2]} 12...
Rc8 {[%clk 0:02:57.3]} 13. cxd5 {[%clk 0:02:55.8]} 13... Nxd5 {[%clk 0:02:54.5]}
14. Nxd5 {[%clk 0:02:54.4]} 14... Bxd5 {[%clk 0:02:49.7]} 15. Qe2 {[%clk
0:02:54.7]} 15... cxd4 {[%clk 0:02:44.1]} 16. Nxd4 {[%clk 0:02:53.5]} 16... Qc7
{[%clk 0:02:38.8]} 17. Ba6 {[%clk 0:02:45.8]} 17... Bb7 {[%clk 0:02:33.9]} 18.
Rc1 {[%clk 0:02:46.1]} 18... Qb8 {[%clk 0:02:34.1]} 19. h3 {[%clk 0:02:41]}
19... Bxa6 {[%clk 0:02:29.5]} 20. Qxa6 {[%clk 0:02:41.9]} 20... Nc5 {[%clk
0:02:29.8]} 21. Qe2 {[%clk 0:02:40.3]} 21... Bf6 {[%clk 0:01:59.7]} 22. Red1
{[%clk 0:02:35.7]} 22... Qe5 {[%clk 0:01:40.5]} 23. Rc2 {[%clk 0:02:19.8]} 23...
Ne4 {[%clk 0:01:31.7]} 24. Rdc1 {[%clk 0:02:17.3]} 24... Rxc2 {[%clk 0:01:29.9]}
25. Rxc2 {[%clk 0:02:18]} 25... Qg5 {[%clk 0:01:21.1]} 26. Qf3 {[%clk
0:02:04.7]} 26... Qg6 {[%clk 0:01:12]} 27. Rc4 {[%clk 0:01:53.2]} 27... e5
{[%clk 0:00:26.6]} 28. Nb5 {[%clk 0:01:30.7]} 28... Nc5 {[%clk 0:00:18.9]} 29.
e4 {[%clk 0:01:08.9]} 29... Rd8 {[%clk 0:00:16]} 30. Ba3 {[%clk 0:00:39]} 30...
Ne6 {[%clk 0:00:11.9]} 31. Rc1 {[%clk 0:00:33.1]} 31... Nd4 {[%clk 0:00:12]} 32.
Nxd4 {[%clk 0:00:31.9]} 32... exd4 {[%clk 0:00:12.9]} 33. Rd1 {[%clk 0:00:31.2]}
33... Be5 {[%clk 0:00:11.9]} 34. Bb2 {[%clk 0:00:30.2]} 34... Qd6 {[%clk
0:00:11.6]} 35. g3 {[%clk 0:00:28.8]} 35... h6 {[%clk 0:00:11.6]} 36. Qd3 {[%clk
0:00:27.6]} 36... Kh8 {[%clk 0:00:11.4]} 37. Kg2 {[%clk 0:00:28]} 37... g5
{[%clk 0:00:10.9]} 38. Qf3 {[%clk 0:00:25.8]} 38... Kg7 {[%clk 0:00:09.9]} 39.
Qg4 {[%clk 0:00:24.4]} 39... Rd7 {[%clk 0:00:09.7]} 40. h4 {[%clk 0:00:24]}
40... Bf6 {[%clk 0:00:09.1]} 41. hxg5 {[%clk 0:00:23.1]} 41... hxg5 {[%clk
0:00:10]} 42. Qf5 {[%clk 0:00:19]} 42... Qe6 {[%clk 0:00:07.7]} 43. Qf3 {[%clk
0:00:15]} 43... Rc7 {[%clk 0:00:07.3]} 44. Rd2 {[%clk 0:00:14.5]} 44... Rd7
{[%clk 0:00:06.1]} 45. Qe2 {[%clk 0:00:13.8]} 45... g4 {[%clk 0:00:06.5]} 46.
Qd3 {[%clk 0:00:12.6]} 46... Rd6 {[%clk 0:00:06]} 47. Re2 {[%clk 0:00:12.6]}
47... Qe5 {[%clk 0:00:06.3]} 48. Bc1 {[%clk 0:00:12]} 48... Bg5 {[%clk 0:00:06]}
49. Bxg5 {[%clk 0:00:09.9]} 49... Qxg5 {[%clk 0:00:06.9]} 50. e5 {[%clk
0:00:10.7]} 50... Rd7 {[%clk 0:00:05.6]} 51. Re4 {[%clk 0:00:10.9]} 51... Qf5
{[%clk 0:00:04.6]} 52. Qe2 {[%clk 0:00:06.3]} 52... Kf8 {[%clk 0:00:03.7]} 53.
e6 {[%clk 0:00:04.4]} 53... fxe6 {[%clk 0:00:03.2]} 54. Rxe6 {[%clk 0:00:05.3]}
54... Qf3+ {[%clk 0:00:02.9]} 55. Qxf3+ {[%clk 0:00:05.3]} 55... gxf3+ {[%clk
0:00:03.8]} 56. Kxf3 {[%clk 0:00:05.2]} 56... d3 {[%clk 0:00:04.7]} 57. Re1
{[%clk 0:00:05.7]} 57... Rc7 {[%clk 0:00:05.2]} 58. Rd1 {[%clk 0:00:06.6]} 58...
Rc2 {[%clk 0:00:05.4]} 59. a4 {[%clk 0:00:05.7]} 59... d2 {[%clk 0:00:04.3]} 60.
Ke2 {[%clk 0:00:05]} 60... Rb2 {[%clk 0:00:04.8]} 61. Rxd2 {[%clk 0:00:04.9]}
61... Rxb3 {[%clk 0:00:05.7]} 62. Rd4 {[%clk 0:00:05.2]} 62... a6 {[%clk
0:00:05.2]} 63. g4 {[%clk 0:00:04.9]} 63... b5 {[%clk 0:00:06.1]} 64. axb5
{[%clk 0:00:05.2]} 64... axb5 {[%clk 0:00:06.7]} 65. Rd3 {[%clk 0:00:05.5]}
65... Rb2+ {[%clk 0:00:06.4]} 66. Ke3 {[%clk 0:00:05.4]} 66... b4 {[%clk
0:00:06.1]} 67. f4 {[%clk 0:00:06.3]} 67... b3 {[%clk 0:00:06.3]} 68. Ke4 {[%clk
0:00:05.3]} 68... Rb1 {[%clk 0:00:06.3]} 69. Kf5 {[%clk 0:00:05.2]} 69... b2
{[%clk 0:00:06.5]} 70. Rb3 {[%clk 0:00:04.4]} 70... Ke7 {[%clk 0:00:06.3]} 71.
g5 {[%clk 0:00:04.7]} 71... Kd6 {[%clk 0:00:06.6]} 72. g6 {[%clk 0:00:04.7]}
72... Kc5 {[%clk 0:00:06.1]} 73. Kf6 {[%clk 0:00:02.9]} 73... Rf1 {[%clk
0:00:05.6]} 74. Rxb2 {[%clk 0:00:02.6]} 74... Rxf4+ {[%clk 0:00:06.2]} 75. Kg7
{[%clk 0:00:03.5]} 75... Kd6 {[%clk 0:00:06.3]} 76. Re2 {[%clk 0:00:03.6]} 76...
Kd7 {[%clk 0:00:05.3]} 77. Kg8 {[%clk 0:00:03.6]} 77... Rg4 {[%clk 0:00:03.4]}
78. g7 {[%clk 0:00:03.9]} 78... Kd6 {[%clk 0:00:03.2]} 79. Re1 {[%clk
0:00:03.2]} 79... Kd7 {[%clk 0:00:03.1]} 80. Re5 {[%clk 0:00:02.6]} 80... Kd6
{[%clk 0:00:03.4]} 81. Rh5 {[%clk 0:00:02.2]} 81... Ke6 {[%clk 0:00:03]} 82. Kh7
{[%clk 0:00:02.1]} 82... Kf7 {[%clk 0:00:02.7]} 83. Rf5+ {[%clk 0:00:01.7]}
83... Ke6 {[%clk 0:00:03.5]} 84. Rf2 {[%clk 0:00:01.5]} 84... Ke7 {[%clk
0:00:02.2]} 85. g8=Q {[%clk 0:00:01.2]} 85... Rh4+ {[%clk 0:00:03]} 86. Kg7
{[%clk 0:00:01]} 86... Rg4+ {[%clk 0:00:03.9]} 87. Kh8 {[%clk 0:00:01.6]} 87...
Rh4+ {[%clk 0:00:04.7]} 88. Qh7+ {[%clk 0:00:02.3]} 88... Rxh7+ {[%clk
0:00:04.8]} 89. Kxh7 {[%clk 0:00:03.2]} 89... Ke6 {[%clk 0:00:05.4]} 90. Kh6
{[%clk 0:00:04.1]} 90... Ke5 {[%clk 0:00:06]} 91. Kh5 {[%clk 0:00:05]} 91... Ke4
{[%clk 0:00:06.9]} 92. Rg2 {[%clk 0:00:05.8]} 1-0

[Event "*** SCC Grand Prix: Titled Tuesday Blitz"]
[Site "Chess.com"]
[Date "2020.08.25"]
[Round "6"]
[White "gagtemp"]
[Black "MYMChessAcademy"]
[Result "1-0"]
[WhiteElo "1958"]
[BlackElo "2101"]
[TimeControl "180+1"]
[EndTime "11:10:42 PDT"]
[Termination "gagtemp won by checkmate"]

1. e4 {[%clk 0:02:59.7]} 1... c5 {[%clk 0:02:59.5]} 2. Nf3 {[%clk 0:02:58.1]}
2... d6 {[%clk 0:02:59.8]} 3. d4 {[%clk 0:02:57.9]} 3... cxd4 {[%clk 0:03:00.2]}
4. Nxd4 {[%clk 0:02:57.2]} 4... a6 {[%clk 0:03:00.7]} 5. Nc3 {[%clk 0:02:55.6]}
5... e6 {[%clk 0:03:01]} 6. Be3 {[%clk 0:02:53.6]} 6... b5 {[%clk 0:03:01.4]} 7.
Bd3 {[%clk 0:02:52]} 7... Bb7 {[%clk 0:03:01.5]} 8. O-O {[%clk 0:02:48.4]} 8...
Nd7 {[%clk 0:03:01.7]} 9. Kh1 {[%clk 0:02:46.6]} 9... Ngf6 {[%clk 0:03:01.4]}
10. a3 {[%clk 0:02:43.4]} 10... Nc5 {[%clk 0:02:59.4]} 11. f3 {[%clk 0:02:27.5]}
11... Be7 {[%clk 0:02:55.4]} 12. Qe1 {[%clk 0:02:24]} 12... O-O {[%clk
0:02:51.3]} 13. b4 {[%clk 0:02:17.3]} 13... Nxd3 {[%clk 0:02:48]} 14. cxd3
{[%clk 0:02:16.5]} 14... Rc8 {[%clk 0:02:48.3]} 15. Rc1 {[%clk 0:02:15.1]} 15...
d5 {[%clk 0:02:46.7]} 16. e5 {[%clk 0:02:07.9]} 16... Nd7 {[%clk 0:02:46.2]} 17.
f4 {[%clk 0:02:03.6]} 17... h6 {[%clk 0:02:22.7]} 18. Qg3 {[%clk 0:02:01.3]}
18... Bh4 {[%clk 0:02:20.2]} 19. Qh3 {[%clk 0:02:00.6]} 19... g5 {[%clk
0:02:09.7]} 20. Qg4 {[%clk 0:01:30.2]} 20... Qe7 {[%clk 0:01:55.5]} 21. g3
{[%clk 0:01:24.7]} 21... f5 {[%clk 0:01:51.9]} 22. Qh5 {[%clk 0:01:13.9]} 22...
gxf4 {[%clk 0:01:45.3]} 23. Qg6+ {[%clk 0:01:01.5]} 23... Kh8 {[%clk 0:01:22.4]}
24. Qxh6+ {[%clk 0:00:50.3]} 24... Qh7 {[%clk 0:01:22.2]} 25. Qxh7+ {[%clk
0:00:40.1]} 25... Kxh7 {[%clk 0:01:21.8]} 26. Bxf4 {[%clk 0:00:39.6]} 26... Be7
{[%clk 0:01:16.3]} 27. Kg1 {[%clk 0:00:38.4]} 27... Rc7 {[%clk 0:01:05.7]} 28.
Nxe6 {[%clk 0:00:38.3]} 28... Rc6 {[%clk 0:01:04.7]} 29. Nxf8+ {[%clk
0:00:37.2]} 29... Nxf8 {[%clk 0:01:03]} 30. Nxd5 {[%clk 0:00:36.3]} 30... Re6
{[%clk 0:01:02.1]} 31. Nxe7 {[%clk 0:00:34.9]} 31... Rxe7 {[%clk 0:01:03]} 32.
d4 {[%clk 0:00:33.5]} 32... Ne6 {[%clk 0:01:03]} 33. Rfd1 {[%clk 0:00:29.8]}
33... Rd7 {[%clk 0:01:02]} 34. Be3 {[%clk 0:00:26.1]} 34... Bf3 {[%clk
0:00:56.4]} 35. Rd2 {[%clk 0:00:25]} 35... Be4 {[%clk 0:00:56.4]} 36. Kf2 {[%clk
0:00:22.9]} 36... Nc7 {[%clk 0:00:56.2]} 37. Rc3 {[%clk 0:00:21.3]} 37... Nd5
{[%clk 0:00:55.5]} 38. Rb3 {[%clk 0:00:21.3]} 38... Rc7 {[%clk 0:00:53]} 39. Bf4
{[%clk 0:00:20.3]} 39... Rc6 {[%clk 0:00:45.4]} 40. h4 {[%clk 0:00:20.1]} 40...
Kg6 {[%clk 0:00:41.9]} 41. Rbb2 {[%clk 0:00:18.4]} 41... Nc3 {[%clk 0:00:39.3]}
42. Rb3 {[%clk 0:00:16.7]} 42... Bd5 {[%clk 0:00:38.2]} 43. Rbb2 {[%clk
0:00:15.8]} 43... Ne4+ {[%clk 0:00:38.1]} 44. Ke2 {[%clk 0:00:15.6]} 44... Nxd2
{[%clk 0:00:36]} 45. Kxd2 {[%clk 0:00:15.9]} 45... Be4 {[%clk 0:00:35.9]} 46.
Ke3 {[%clk 0:00:15.4]} 46... Rc3+ {[%clk 0:00:34.9]} 47. Kf2 {[%clk 0:00:15]}
47... Rf3+ {[%clk 0:00:33.3]} 48. Ke2 {[%clk 0:00:14.3]} 48... Rxa3 {[%clk
0:00:32.7]} 49. Rd2 {[%clk 0:00:14.5]} 49... Kf7 {[%clk 0:00:23.5]} 50. d5
{[%clk 0:00:14.7]} 50... Rb3 {[%clk 0:00:21.4]} 51. e6+ {[%clk 0:00:14.8]} 51...
Ke7 {[%clk 0:00:20.3]} 52. Bg5+ {[%clk 0:00:15.1]} 52... Kd6 {[%clk 0:00:18.3]}
53. e7 {[%clk 0:00:14.7]} 53... Kd7 {[%clk 0:00:18.7]} 54. d6 {[%clk 0:00:14.3]}
54... Rxb4 {[%clk 0:00:17.9]} 55. h5 {[%clk 0:00:13.8]} 55... Rb3 {[%clk
0:00:16.8]} 56. Bf4 {[%clk 0:00:11.6]} 56... Bf3+ {[%clk 0:00:15.6]} 57. Kf2
{[%clk 0:00:10.8]} 57... Bxh5 {[%clk 0:00:16.5]} 58. Rc2 {[%clk 0:00:10.8]}
58... Rf3+ {[%clk 0:00:14.3]} 59. Kg2 {[%clk 0:00:10.2]} 59... Be8 {[%clk
0:00:09.2]} 60. Rc7+ {[%clk 0:00:09.7]} 60... Ke6 {[%clk 0:00:09.9]} 61. Ra7
{[%clk 0:00:09.8]} 61... Rb3 {[%clk 0:00:08.8]} 62. Rxa6 {[%clk 0:00:09.8]}
62... Rb2+ {[%clk 0:00:09.4]} 63. Kf3 {[%clk 0:00:09]} 63... Rb3+ {[%clk
0:00:08.8]} 64. Kf2 {[%clk 0:00:08.8]} 64... Rb2+ {[%clk 0:00:09.1]} 65. Ke3
{[%clk 0:00:08.3]} 65... Rb3+ {[%clk 0:00:08.1]} 66. Kd2 {[%clk 0:00:08.6]}
66... Rb2+ {[%clk 0:00:08.4]} 67. Kc1 {[%clk 0:00:08.8]} 67... Rg2 {[%clk
0:00:08.5]} 68. Ra8 {[%clk 0:00:08.4]} 68... Rg1+ {[%clk 0:00:08.8]} 69. Kb2
{[%clk 0:00:08]} 69... Rg2+ {[%clk 0:00:09]} 70. Kc3 {[%clk 0:00:07.6]} 70...
Bd7 {[%clk 0:00:07.5]} 71. e8=Q+ {[%clk 0:00:05.7]} 71... Bxe8 {[%clk 0:00:07]}
72. Rxe8+ {[%clk 0:00:06.6]} 72... Kd7 {[%clk 0:00:07.9]} 73. Re7+ {[%clk
0:00:06.8]} 73... Kc6 {[%clk 0:00:08.5]} 74. Kb4 {[%clk 0:00:07.1]} 74... Rb2+
{[%clk 0:00:08.2]} 75. Kc3 {[%clk 0:00:06.4]} 75... Rf2 {[%clk 0:00:06.1]} 76.
Rc7+ {[%clk 0:00:06.9]} 76... Kd5 {[%clk 0:00:06.1]} 77. Kb4 {[%clk 0:00:07.3]}
77... Rb2+ {[%clk 0:00:05.7]} 78. Kc3 {[%clk 0:00:07.5]} 78... Rg2 {[%clk
0:00:05.6]} 79. d7 {[%clk 0:00:07.7]} 79... Ke6 {[%clk 0:00:04.5]} 80. d8=Q
{[%clk 0:00:07.1]} 80... Rc2+ {[%clk 0:00:05.4]} 81. Kxc2 {[%clk 0:00:06.5]}
81... b4 {[%clk 0:00:06.3]} 82. Qe7+ {[%clk 0:00:06.6]} 82... Kd5 {[%clk
0:00:06.4]} 83. Kb1 {[%clk 0:00:07.1]} 83... Kd4 {[%clk 0:00:05.5]} 84. Qd6+
{[%clk 0:00:07.5]} 84... Ke4 {[%clk 0:00:04.7]} 85. Re7+ {[%clk 0:00:08]} 85...
Kf3 {[%clk 0:00:05.2]} 86. Qd3+ {[%clk 0:00:08.3]} 86... Kg4 {[%clk 0:00:05.8]}
87. Rg7+ {[%clk 0:00:08.4]} 87... Kh3 {[%clk 0:00:06.3]} 88. Qf1+ {[%clk
0:00:07.4]} 88... Kh2 {[%clk 0:00:06.8]} 89. Rh7# {[%clk 0:00:06.9]} 1-0

[Event "*** SCC Grand Prix: Titled Tuesday Blitz"]
[Site "Chess.com"]
[Date "2020.08.25"]
[Round "6"]
[White "CHESSMASTER759"]
[Black "bascheyaro"]
[Result "0-1"]
[WhiteElo "2539"]
[BlackElo "2764"]
[TimeControl "180+1"]
[EndTime "11:10:59 PDT"]
[Termination "bascheyaro won by resignation"]

1. e4 {[%clk 0:02:59.1]} 1... e6 {[%clk 0:03:00.2]} 2. d4 {[%clk 0:02:58.2]}
2... d5 {[%clk 0:03:01.1]} 3. Nd2 {[%clk 0:02:58.4]} 3... c5 {[%clk 0:03:00.8]}
4. exd5 {[%clk 0:02:55]} 4... exd5 {[%clk 0:03:01.7]} 5. Ngf3 {[%clk 0:02:53.1]}
5... Nc6 {[%clk 0:03:01.8]} 6. Bb5 {[%clk 0:02:45.2]} 6... c4 {[%clk 0:03:02]}
7. O-O {[%clk 0:02:40.7]} 7... Bd6 {[%clk 0:03:02.1]} 8. b3 {[%clk 0:02:37.9]}
8... cxb3 {[%clk 0:03:03]} 9. axb3 {[%clk 0:02:37.7]} 9... Ne7 {[%clk
0:03:03.7]} 10. c4 {[%clk 0:02:35.4]} 10... O-O {[%clk 0:03:03.8]} 11. c5 {[%clk
0:02:29.2]} 11... Bc7 {[%clk 0:03:03.6]} 12. Bd3 {[%clk 0:02:28.3]} 12... Bf5
{[%clk 0:03:03.4]} 13. Qe2 {[%clk 0:02:16.2]} 13... Re8 {[%clk 0:03:02.6]} 14.
Re1 {[%clk 0:02:14]} 14... Qd7 {[%clk 0:02:54.5]} 15. Bb2 {[%clk 0:02:11.1]}
15... Nb4 {[%clk 0:02:43.4]} 16. Bxf5 {[%clk 0:02:07.3]} 16... Nxf5 {[%clk
0:02:44.3]} 17. Qf1 {[%clk 0:01:51.6]} 17... a6 {[%clk 0:02:32.9]} 18. Bc3
{[%clk 0:01:48.4]} 18... Nc6 {[%clk 0:02:32.6]} 19. Qd3 {[%clk 0:01:47.9]} 19...
Bf4 {[%clk 0:02:29.8]} 20. Nf1 {[%clk 0:01:44.7]} 20... f6 {[%clk 0:02:25.3]}
21. Ng3 {[%clk 0:01:41.3]} 21... Bxg3 {[%clk 0:02:22.5]} 22. hxg3 {[%clk
0:01:42.2]} 22... g6 {[%clk 0:02:19.7]} 23. Rxe8+ {[%clk 0:01:34.7]} 23... Rxe8
{[%clk 0:02:19]} 24. Re1 {[%clk 0:01:31.2]} 24... Kf7 {[%clk 0:02:17.8]} 25. g4
{[%clk 0:01:22.9]} 25... Ng7 {[%clk 0:02:14.1]} 26. g5 {[%clk 0:01:18.1]} 26...
Rxe1+ {[%clk 0:02:13.8]} 27. Bxe1 {[%clk 0:01:17.8]} 27... Qf5 {[%clk
0:02:12.9]} 28. Qxf5 {[%clk 0:01:14.3]} 28... Nxf5 {[%clk 0:02:13.8]} 29. Bc3
{[%clk 0:01:14.5]} 29... Ng7 {[%clk 0:01:58.6]} 30. gxf6 {[%clk 0:01:11.5]}
30... Kxf6 {[%clk 0:01:59.5]} 31. Kf1 {[%clk 0:01:11.8]} 31... Ne6 {[%clk
0:01:50]} 32. g3 {[%clk 0:01:10]} 32... Kf5 {[%clk 0:01:47.1]} 33. Ke2 {[%clk
0:01:09.9]} 33... g5 {[%clk 0:01:46.6]} 34. Kd3 {[%clk 0:01:07.2]} 34... h5
{[%clk 0:01:45]} 35. Bd2 {[%clk 0:01:00.4]} 35... Kg4 {[%clk 0:01:45.1]} 36. Ke3
{[%clk 0:00:58.2]} 36... h4 {[%clk 0:01:43]} 37. gxh4 {[%clk 0:00:58.3]} 37...
gxh4 {[%clk 0:01:43.3]} 38. Bc3 {[%clk 0:00:59.2]} 38... h3 {[%clk 0:01:39.6]}
39. Nh2+ {[%clk 0:00:57.1]} 39... Kf5 {[%clk 0:01:39.4]} 40. Nf3 {[%clk
0:00:54.3]} 40... Ng5 {[%clk 0:01:32.8]} 41. Nh2 {[%clk 0:00:51.9]} 41... Ne6
{[%clk 0:01:11.4]} 42. f3 {[%clk 0:00:49.5]} 42... Nf4 {[%clk 0:01:09.9]} 43.
Nf1 {[%clk 0:00:47.2]} 43... Ne6 {[%clk 0:01:00.6]} 44. Ng3+ {[%clk 0:00:42.8]}
44... Kg5 {[%clk 0:00:56.6]} 45. Nf1 {[%clk 0:00:40.9]} 45... Ne7 {[%clk
0:00:49.5]} 46. Kf2 {[%clk 0:00:38.5]} 46... Nf5 {[%clk 0:00:48.7]} 47. Bd2+
{[%clk 0:00:24.4]} 47... Kf6 {[%clk 0:00:46.6]} 48. Ne3 {[%clk 0:00:24.4]} 48...
Nxe3 {[%clk 0:00:44.2]} 49. Bxe3 {[%clk 0:00:23.2]} 49... Ng7 {[%clk 0:00:43.8]}
50. Bf4 {[%clk 0:00:20.6]} 50... Nf5 {[%clk 0:00:40]} 51. Be5+ {[%clk
0:00:18.1]} 51... Kg5 {[%clk 0:00:40.2]} 52. Kg1 {[%clk 0:00:15.4]} 52... Nh4
{[%clk 0:00:37]} 53. Kf2 {[%clk 0:00:14.9]} 53... Kf5 {[%clk 0:00:30.6]} 54. Bg3
{[%clk 0:00:14.7]} 54... Ng2 {[%clk 0:00:27]} 55. Kg1 {[%clk 0:00:15]} 55... Nf4
{[%clk 0:00:23]} 56. Kh2 {[%clk 0:00:14.7]} 56... Kg5 {[%clk 0:00:19.3]} 57. Bf2
{[%clk 0:00:10.2]} 57... Kg6 {[%clk 0:00:19.6]} 58. Be3 {[%clk 0:00:09.7]} 58...
Kf5 {[%clk 0:00:20.1]} 59. Kg3 {[%clk 0:00:09.8]} 59... h2 {[%clk 0:00:07.6]}
60. Kxh2 {[%clk 0:00:09.6]} 60... Ne6 {[%clk 0:00:08]} 61. Kg3 {[%clk
0:00:09.5]} 61... Nd8 {[%clk 0:00:08.9]} 62. Kf2 {[%clk 0:00:09.9]} 62... Nc6
{[%clk 0:00:09.8]} 63. Ke2 {[%clk 0:00:10.2]} 63... Na5 {[%clk 0:00:09.5]} 64.
b4 {[%clk 0:00:09.1]} 64... Nc6 {[%clk 0:00:09.7]} 65. b5 {[%clk 0:00:09.3]}
65... axb5 {[%clk 0:00:10.6]} 66. Kd3 {[%clk 0:00:09.9]} 66... Kg6 {[%clk
0:00:10.8]} 67. Kc3 {[%clk 0:00:10.2]} 67... Kh5 {[%clk 0:00:11.1]} 68. Bf2
{[%clk 0:00:09.8]} 68... Kg5 {[%clk 0:00:11.6]} 69. Be3+ {[%clk 0:00:10]} 69...
Kh4 {[%clk 0:00:11.7]} 70. Kd3 {[%clk 0:00:10.4]} 70... Kg3 {[%clk 0:00:11.9]}
71. Ke2 {[%clk 0:00:11.3]} 71... b4 {[%clk 0:00:11.6]} 72. Bf2+ {[%clk
0:00:11.8]} 72... Kf4 {[%clk 0:00:11.8]} 73. Be3+ {[%clk 0:00:12.2]} 73... Kf5
{[%clk 0:00:11.4]} 74. Kd3 {[%clk 0:00:12.5]} 74... Kg6 {[%clk 0:00:11.5]} 75.
Bd2 {[%clk 0:00:12.8]} 75... Kh5 {[%clk 0:00:11.6]} 76. Be3 {[%clk 0:00:13.1]}
76... Kh4 {[%clk 0:00:11.9]} 77. Ke2 {[%clk 0:00:13.5]} 77... b3 {[%clk
0:00:10.8]} 78. Bf2+ {[%clk 0:00:12.9]} 78... Kh3 {[%clk 0:00:11.2]} 79. Kd3
{[%clk 0:00:13.1]} 79... Kg2 {[%clk 0:00:11.5]} 80. Be1 {[%clk 0:00:13.3]} 80...
Kxf3 {[%clk 0:00:11.9]} 81. Kc3 {[%clk 0:00:13.6]} 81... Ke2 {[%clk 0:00:11.8]}
82. Bg3 {[%clk 0:00:12.7]} 82... Nxd4 {[%clk 0:00:11.8]} 83. Be5 {[%clk
0:00:12.8]} 83... Nc6 {[%clk 0:00:11.5]} 84. Bf6 {[%clk 0:00:13.1]} 84... Ke3
{[%clk 0:00:10.9]} 85. Kxb3 {[%clk 0:00:13.1]} 85... d4 {[%clk 0:00:10.9]} 86.
Kc4 {[%clk 0:00:13.1]} 86... d3 {[%clk 0:00:11.1]} 87. Kb5 {[%clk 0:00:13.7]}
87... Nd4+ {[%clk 0:00:09]} 88. Kb6 {[%clk 0:00:13.3]} 88... Ne6 {[%clk
0:00:07.6]} 89. Bc3 {[%clk 0:00:13.4]} 89... Ke4 {[%clk 0:00:07.9]} 90. Kxb7
{[%clk 0:00:12.4]} 90... Nxc5+ {[%clk 0:00:08.2]} 91. Kc6 {[%clk 0:00:13.3]}
91... Na4 {[%clk 0:00:08.8]} 92. Bd2 {[%clk 0:00:13.2]} 92... Kd4 {[%clk
0:00:09.7]} 93. Kb5 {[%clk 0:00:13.5]} 93... Nc3+ {[%clk 0:00:10]} 94. Kb4
{[%clk 0:00:13.5]} 94... Ne4 {[%clk 0:00:10.4]} 95. Be1 {[%clk 0:00:13.7]} 95...
Ke3 {[%clk 0:00:10.9]} 96. Kc4 {[%clk 0:00:13.9]} 96... Nd2+ {[%clk 0:00:10.7]}
97. Kc3 {[%clk 0:00:13.3]} 97... Nf3 {[%clk 0:00:11]} 98. Bg3 {[%clk 0:00:12.9]}
98... d2 {[%clk 0:00:11.3]} 99. Kc2 {[%clk 0:00:13.4]} 99... Ke2 {[%clk
0:00:11.6]} 0-1

[Event "*** SCC Grand Prix: Titled Tuesday Blitz"]
[Site "Chess.com"]
[Date "2020.08.25"]
[Round "7"]
[White "FontVella8"]
[Black "Kildepiotr"]
[Result "0-1"]
[WhiteElo "2493"]
[BlackElo "2649"]
[TimeControl "180+1"]
[EndTime "11:15:12 PDT"]
[Termination "Kildepiotr won by resignation"]

1. e4 {[%clk 0:02:58.8]} 1... g6 {[%clk 0:02:59.5]} 2. d4 {[%clk 0:02:57.1]}
2... Bg7 {[%clk 0:02:58.1]} 3. Nc3 {[%clk 0:02:56.3]} 3... c6 {[%clk 0:02:57.9]}
4. Be3 {[%clk 0:02:55.8]} 4... d5 {[%clk 0:02:57.8]} 5. f3 {[%clk 0:02:51.8]}
5... dxe4 {[%clk 0:02:57.2]} 6. fxe4 {[%clk 0:02:51.6]} 6... Nf6 {[%clk
0:02:57.8]} 7. h3 {[%clk 0:02:50.5]} 7... e5 {[%clk 0:02:55.4]} 8. d5 {[%clk
0:02:37.4]} 8... O-O {[%clk 0:02:51.8]} 9. Qd2 {[%clk 0:02:36.9]} 9... cxd5
{[%clk 0:02:51.4]} 10. exd5 {[%clk 0:02:36.9]} 10... Nh5 {[%clk 0:02:33.4]} 11.
Bc4 {[%clk 0:02:19.8]} 11... Qh4+ {[%clk 0:02:26.8]} 12. Bf2 {[%clk 0:02:18.2]}
12... Qxc4 {[%clk 0:02:26.6]} 13. Nge2 {[%clk 0:02:16.1]} 13... Nf4 {[%clk
0:02:17.9]} 14. Nxf4 {[%clk 0:02:13.6]} 14... exf4 {[%clk 0:02:17.2]} 15. O-O-O
{[%clk 0:02:13.1]} 15... Bf5 {[%clk 0:02:13.1]} 16. h4 {[%clk 0:02:12]} 16... h5
{[%clk 0:02:08.8]} 17. Kb1 {[%clk 0:02:07.5]} 17... Na6 {[%clk 0:02:06.2]} 0-1

[Event "*** SCC Grand Prix: Titled Tuesday Blitz"]
[Site "Chess.com"]
[Date "2020.08.25"]
[Round "7"]
[White "tdf98pantani"]
[Black "NiranjanNavalgund"]
[Result "1-0"]
[WhiteElo "2651"]
[BlackElo "2437"]
[TimeControl "180+1"]
[EndTime "11:15:19 PDT"]
[Termination "tdf98pantani won by resignation"]

1. d4 {[%clk 0:03:00.9]} 1... Nf6 {[%clk 0:02:59.7]} 2. c4 {[%clk 0:03:00.8]}
2... Nc6 {[%clk 0:02:59.9]} 3. Nf3 {[%clk 0:02:59.9]} 3... e6 {[%clk 0:03:00.2]}
4. a3 {[%clk 0:02:59.7]} 4... d6 {[%clk 0:03:00.3]} 5. Nc3 {[%clk 0:02:59.3]}
5... g6 {[%clk 0:03:00.7]} 6. g3 {[%clk 0:02:59.4]} 6... Bg7 {[%clk 0:03:01.1]}
7. Bg2 {[%clk 0:02:59.7]} 7... O-O {[%clk 0:03:01.1]} 8. O-O {[%clk 0:03:00]}
8... Re8 {[%clk 0:03:01.7]} 9. d5 {[%clk 0:02:45.2]} 9... exd5 {[%clk
0:02:59.7]} 10. cxd5 {[%clk 0:02:44.9]} 10... Ne5 {[%clk 0:02:59]} 11. Nd4
{[%clk 0:02:43.1]} 11... a6 {[%clk 0:02:58.5]} 12. h3 {[%clk 0:02:41.6]} 12...
Bd7 {[%clk 0:02:58.2]} 13. Kh2 {[%clk 0:02:38.1]} 13... h5 {[%clk 0:02:55.9]}
14. e4 {[%clk 0:02:11.4]} 14... h4 {[%clk 0:02:40.3]} 15. gxh4 {[%clk
0:02:10.8]} 15... Nh5 {[%clk 0:02:40]} 16. Bg5 {[%clk 0:02:10.3]} 16... Bf6
{[%clk 0:02:39.4]} 17. f4 {[%clk 0:02:08.9]} 17... Nc4 {[%clk 0:02:39.7]} 18.
Qe2 {[%clk 0:02:03.4]} 18... Nxb2 {[%clk 0:02:38.9]} 19. Qxb2 {[%clk 0:02:02.3]}
19... b5 {[%clk 0:02:37.6]} 20. Rae1 {[%clk 0:01:59.4]} 20... Qc8 {[%clk
0:02:37.9]} 21. Bxf6 {[%clk 0:01:57.7]} 21... Nxf6 {[%clk 0:02:38.8]} 22. e5
{[%clk 0:01:58]} 22... Nh5 {[%clk 0:02:39.3]} 23. e6 {[%clk 0:01:57.3]} 23...
fxe6 {[%clk 0:02:39.2]} 24. dxe6 {[%clk 0:01:57.5]} 24... Bxe6 {[%clk
0:02:39.2]} 25. Nxe6 {[%clk 0:01:57.5]} 25... Rxe6 {[%clk 0:02:40.1]} 26. Rxe6
{[%clk 0:01:57.7]} 26... c6 {[%clk 0:02:37.9]} 27. Rxg6+ {[%clk 0:01:56.7]}
27... Kh7 {[%clk 0:02:38]} 28. Be4 {[%clk 0:01:54.2]} 1-0